bitfinex/quotes_ETHUSD_20230905
["timestamp","ask_amount","ask_price","bid_price","bid_amount"]
[1693932788333,2.13688259,1637.6,1637.5,32.64253925]
[1693932788541,1.50012691,1637.6,1637.5,39.52484178]
[1693932788743,1.50012691,1637.6,1637.5,38.56519702]
[1693932794753,1.50012691,1637.6,1637.5,35.49818276]
[1693932795058,1.50012691,1637.6,1637.5,32.6976402]
[1693932795259,1.50012691,1637.6,1637.5,29.61427428]
[1693932797317,1.50012691,1637.6,1637.5,14.40053428]
[1693932797523,1.50012691,1637.6,1637.5,7.16805809]
[1693932797752,1.50012691,1637.6,1637.5,13.27492809]
[1693932797930,1.81411194,1637.6,1637.5,13.27492809]
[1693932799542,1.81411194,1637.6,1637.5,7.16805809]
[1693932800972,1.81411194,1637.6,1637.5,13.27492809]
[1693932801339,1.81411194,1637.6,1637.5,7.16825809]
[1693932801757,2.60615213,1637.6,1637.5,7.16825809]
[1693932802186,2.2921671,1637.6,1637.5,6.10687]
[1693932804337,2.2921671,1637.6,1637.4,1.59208214]
[1693932804566,8.3986571,1637.6,1637.3,12.21477]
[1693932804764,0.83986571,1637.5,1637.3,12.21477]
[1693932805041,2.13714355,1637.4,1637.3,12.21477]
[1693932805240,2.13714355,1637.4,1637.3,13.2762874]
[1693932809177,2.13714355,1637.4,1637.3,13.27629907]
[1693932810682,2.13714355,1637.4,1637.3,6.10735]
[1693932810878,8.76257769,1637.4,1637.1,9.74869405]
[1693932811180,8.76257769,1637.4,1637.1,7.70071892]
[1693932811379,8.76257769,1637.4,1637.1,13.80907892]
[1693932811587,6.62543414,1637.4,1637.1,13.80907892]
[1693932811877,2.13740458,1637.2,1637.1,7.70071892]
[1693932812064,2.13740458,1637.2,1637.1,19.87070399]
[1693932812575,2.13740458,1637.2,1637.1,8.76234399]
[1693932813080,2.13740458,1637.2,1637.1,14.87070399]
[1693932813380,2.13740458,1637.2,1637.1,15.51109804]
[1693932813600,2.13740458,1637.2,1637.1,21.61945804]
[1693932814265,2.13740458,1637.2,1637.1,22.94045804]
[1693932815306,2.13740458,1637.2,1637.1,27.94045804]
[1693932820070,2.13740458,1637.2,1637.1,25.28641405]
[1693932820270,2.13740458,1637.2,1637.1,27.94031626]
[1693932822307,2.13740458,1637.2,1637.1,31.00733052]
[1693932822507,1.00516037,1637.2,1637.1,37.86040862]
[1693932822688,1.00516037,1637.2,1637.1,38.18031522]
[1693932823084,1.00516037,1637.2,1637.1,41.18031522]
[1693932823586,1.8826,1637.8,1637.1,41.18031522]
[1693932823919,1.8826,1637.8,1637.3,3.95948043]
[1693932823920,1.49748993,1637.4,1637.3,3.95948043]
[1693932824105,1.49748993,1637.4,1637.3,41.92914831]
[1693932824426,1.49748993,1637.4,1637.3,46.60353956]
[1693932824779,1.49748993,1637.4,1637.3,47.92453956]
[1693932824979,1.49748993,1637.4,1637.3,46.96506576]
[1693932828482,0.86070196,1637.4,1637.3,46.96506576]
[1693932832780,0.86070196,1637.4,1637.3,44.31356553]
[1693932833414,1.11511323,1637.4,1637.3,47.31356553]
[1693932834722,0.86070196,1637.4,1637.3,46.03425828]
[1693932835710,0.86070196,1637.4,1637.3,43.51946682]
[1693932836226,0.86070196,1637.4,1637.3,37.41185682]
[1693932836525,0.86070196,1637.4,1637.3,38.23543738]
[1693932839229,0.86070196,1637.4,1637.3,37.5957709]
[1693932840724,0.86070196,1637.4,1637.3,37.41185682]
[1693932841694,0.86070196,1637.4,1637.3,34.34484256]
[1693932841900,0.86070196,1637.4,1637.3,23.35378699]
[1693932842100,1.11491352,1637.4,1637.3,23.35378699]
[1693932842329,1.11491352,1637.4,1637.3,29.46139699]
[1693932842514,0.86070196,1637.4,1637.3,29.46174516]
[1693932843194,0.86070196,1637.4,1637.3,30.10167228]
[1693932843811,1.11477782,1637.4,1637.3,30.10167228]
[1693932848658,1.11477782,1637.4,1637.3,30.00167228]
[1693932848819,1.11477782,1637.4,1637.3,25.00167228]
[1693932849322,1.11477782,1637.4,1637.3,2.65370662]
[1693932849675,7.22201782,1637.4,1637.3,1.06148265]
[1693932850028,7.22201782,1637.4,1637.2,1.70140977]
[1693932850229,0.72220178,1637.3,1637.2,0.63992712]
[1693932850574,0.9759724,1637.3,1637.2,12.80938649]
[1693932850741,0.9759724,1637.3,1637.2,14.40161046]
[1693932850918,4.413804,1637.4,1637.2,20.50959046]
[1693932851123,0.25379324,1637.3,1637.2,12.26420588]
[1693932851356,0.25379324,1637.3,1637.1,13.80857397]
[1693932851544,2.13740458,1637.2,1637.1,13.80857397]
[1693932851745,2.13740458,1637.2,1637.1,18.80857397]
[1693932852819,2.13740458,1637.2,1637.1,13.80857397]
[1693932854358,2.13740458,1637.2,1637.1,18.80857397]
[1693932855958,2.13740458,1637.2,1637.1,24.91693397]
[1693932858683,2.39152908,1637.2,1637.1,24.91693397]
[1693932859045,2.13740458,1637.2,1637.1,24.91693397]
[1693932860152,2.13740458,1637.2,1637.1,26.23793397]
[1693932860559,2.13740458,1637.2,1637.1,26.71793397]
[1693932861161,2.13740458,1637.2,1637.1,27.35795669]
[1693932862053,2.13740458,1637.2,1637.1,27.25795669]
[1693932862253,2.13740458,1637.2,1637.1,42.48643574]
[1693932863289,1.9387,1637.8,1637.1,46.76574299]
[1693932863451,2.13727406,1637.3,1637.2,12.47232918]
[1693932863662,2.13727406,1637.3,1637.2,44.05364918]
[1693932863858,2.13727406,1637.3,1637.2,42.58519574]
[1693932864269,1.9387,1637.8,1637.2,42.58519574]
[1693932864470,1.9387,1637.8,1637.5,1.321]
[1693932864697,0.81601307,1637.5,1637.3,8.3395454]
[1693932864914,0.81601307,1637.5,1637.4,11.99911426]
[1693932865063,0.81601307,1637.5,1637.4,28.18973426]
[1693932865670,0.81601307,1637.5,1637.4,29.78186764]
[1693932867994,0.81601307,1637.5,1637.4,28.18973426]
[1693932868169,0.81601307,1637.5,1637.4,23.80172]
[1693932868369,0.81601307,1637.5,1637.4,23.32172]
[1693932868771,1.07090804,1637.5,1637.4,23.32172]
[1693932869376,0.81601307,1637.5,1637.4,23.32172]
[1693932870669,0.81601307,1637.5,1637.4,18.32172]
[1693932870864,0.81601307,1637.5,1637.3,0.64004143]
[1693932871066,0.81601307,1637.5,1637.4,12.21448]
[1693932871272,0.81601307,1637.5,1637.4,6.10724]
[1693932871471,1.07043278,1637.5,1637.4,6.10724]
[1693932871672,1.07043278,1637.5,1637.4,12.21448]
[1693932871908,1.07043278,1637.5,1637.4,6.10724]
[1693932872090,1.07043278,1637.5,1637.4,12.21448]
[1693932872379,1.07043278,1637.5,1637.4,6.10724]
[1693932872892,0.25441971,1637.5,1637.4,6.10724]
[1693932873090,0.25441971,1637.5,1637.4,3.96996594]
[1693932873294,12.21277,1637.7,1637.4,6.10724]
[1693932873496,1.221277,1637.6,1637.4,6.10724]
[1693932874105,1.221277,1637.6,1637.4,12.21448]
[1693932874283,8.04445,1637.8,1637.4,6.10724]
[1693932874490,14.15047,1637.8,1637.4,12.21448]
[1693932875711,0.25480641,1637.7,1637.4,12.21448]
[1693932875908,6.36109641,1637.7,1637.4,12.21448]
[1693932876114,6.36109641,1637.7,1637.4,6.10724]
[1693932876719,6.36109641,1637.7,1637.3,13.80683449]
[1693932877015,0.63610964,1637.6,1637.3,12.21464]
[1693932877216,0.63610964,1637.6,1637.4,6.10724]
[1693932880018,0.63610964,1637.6,1637.3,13.80684449]
[1693932880218,0.63610964,1637.6,1637.4,6.10724]
[1693932880796,0.63610964,1637.6,1637.4,12.21448]
[1693932883886,0.63610964,1637.6,1637.3,8.33952592]
[1693932884087,0.63610964,1637.6,1637.4,1.0615064]
[1693932884289,0.63610964,1637.6,1637.4,7.1687464]
[1693932884487,0.63610964,1637.6,1637.4,5.03160285]
[1693932884999,0.63610964,1637.6,1637.4,6.10724]
[1693932886820,2.13701307,1637.5,1637.4,6.10724]
[1693932891044,2.39147801,1637.5,1637.4,6.10724]
[1693932892044,2.39147801,1637.5,1637.4,6.08511634]
[1693932893942,2.89500678,1637.5,1637.3,8.33952592]
[1693932894116,2.89500678,1637.5,1637.3,6.74733143]
[1693932895640,0.75799371,1637.5,1637.3,6.74733143]
[1693932895844,6.86486371,1637.5,1637.3,4.61005737]
[1693932896049,6.86486371,1637.5,1637.3,6.74748143]
[1693932896254,0.68648637,1637.4,1637.3,4.61020737]
[1693932896615,6.86486371,1637.5,1637.3,6.10744]
[1693932897050,2.13727406,1637.3,1637.2,7.56510866]
[1693932897226,2.13727406,1637.3,1637.2,11.60578297]
[1693932897729,2.13727406,1637.3,1637.2,6.60581297]
[1693932898957,2.13727406,1637.3,1637.2,0.49783297]
[1693932899118,2.13727406,1637.3,1637.2,5.0]
[1693932899319,4.02033207,1637.3,1637.2,5.0]
[1693932899874,4.02033207,1637.3,1637.2,11.10798]
[1693932900521,2.13727406,1637.3,1637.2,12.70017449]
[1693932900847,2.13727406,1637.3,1637.2,13.80815449]
[1693932901053,2.13727406,1637.3,1637.2,18.32394]
[1693932901255,2.13727406,1637.3,1637.2,19.91613449]
[1693932901639,2.39062054,1637.3,1637.2,19.91613449]
[1693932902243,2.39062054,1637.3,1637.2,24.91613449]
[1693932904570,2.39062054,1637.3,1637.2,25.97769905]
[1693932904865,2.39062054,1637.3,1637.2,13.76173905]
[1693932905067,2.39062054,1637.3,1637.2,12.16954456]
[1693932905270,2.39062054,1637.3,1637.2,7.16954456]
[1693932905671,3.24040959,1637.3,1637.2,7.16954456]
[1693932908670,3.24040959,1637.3,1637.2,1.06156456]
[1693932909379,9.34801959,1637.3,1637.2,1.06156456]
[1693932911270,3.24040959,1637.3,1637.2,1.06156456]
[1693932911474,3.24040959,1637.3,1637.2,13.27752456]
[1693932911648,2.39062054,1637.3,1637.2,13.27752456]
[1693932914901,2.39062054,1637.3,1637.2,7.16954456]
[1693932915379,2.39062054,1637.3,1637.2,13.27752456]
[1693932915582,2.39062054,1637.3,1637.2,7.16954456]
[1693932915757,2.13727406,1637.3,1637.2,7.16954456]
[1693932915960,2.3959394,1637.3,1637.2,7.16954456]
[1693932916161,2.83823334,1637.3,1637.2,7.16954456]
[1693932918384,15.05345334,1637.3,1637.0,0.49764603]
[1693932918607,15.05345334,1637.3,1636.9,8.34280576]
[1693932918805,12.91617928,1637.3,1637.0,6.06175363]
[1693932918985,2.13753512,1637.1,1637.0,5.0]
[1693932919302,2.13753512,1637.1,1637.0,6.06175152]
[1693932919603,2.13753512,1637.1,1637.0,7.17048152]
[1693932920705,2.13753512,1637.1,1637.0,13.27921152]
[1693932920872,2.39510547,1637.1,1637.0,13.27921152]
[1693932924871,2.39510547,1637.1,1637.0,7.17048152]
[1693932925067,2.39510547,1637.1,1637.0,1.06175152]
[1693932925485,2.39510547,1637.1,1637.0,7.17048152]
[1693932926302,3.44468802,1637.1,1637.0,1.06175152]
[1693932926504,3.44468802,1637.1,1637.0,6.10873]
[1693932927108,1.3071529,1637.1,1637.0,6.10873]
[1693932927614,1.3071529,1637.1,1636.9,7.70144202]
[1693932927808,0.25757035,1637.1,1637.0,6.10873]
[1693932928009,0.25757035,1637.1,1637.0,13.27920039]
[1693932928213,6.10765,1637.3,1637.0,13.27920039]
[1693932928380,6.10765,1637.3,1637.0,12.21746]
[1693932928715,2.444188,1637.5,1637.1,2.99347318]
[1693932928892,3.36288576,1637.5,1637.2,12.21582]
[1693932929079,9.46975576,1637.5,1637.2,12.21582]
[1693932929283,9.46975576,1637.5,1637.2,14.38092]
[1693932929501,9.46975576,1637.5,1637.2,2.1651]
[1693932929809,11.35045576,1637.5,1637.2,2.1651]
[1693932929982,11.35045576,1637.5,1637.2,6.13547488]
[1693932929983,1.13504558,1637.4,1637.2,6.13547488]
[1693932930182,7.24228558,1637.4,1637.2,6.13547488]
[1693932930622,7.24228558,1637.4,1637.2,6.10791]
[1693932931800,2.444188,1637.5,1637.2,9.17492426]
[1693932932000,0.95810504,1637.8,1637.2,9.17492426]
[1693932932001,12.21261,1637.7,1637.2,23.32278018]
[1693932932201,12.21261,1637.7,1637.3,1.321]
[1693932932437,12.21261,1637.7,1637.4,6.10716]
[1693932932438,0.00307127,1637.6,1637.4,6.10716]
[1693932932791,0.00307127,1637.6,1637.4,6.10724]
[1693932933034,0.8086484,1637.6,1637.4,6.10724]
[1693932934138,6.9152084,1637.6,1637.4,6.10724]
[1693932934336,2.13714355,1637.4,1637.3,12.21485]
[1693932935345,2.14019782,1637.4,1637.3,12.21485]
[1693932935923,2.59804636,1637.4,1637.3,12.21485]
[1693932936345,2.59804636,1637.4,1637.3,20.25428592]
[1693932936635,2.59804636,1637.4,1637.3,21.31581453]
[1693932936839,2.59804636,1637.4,1637.3,24.38282879]
[1693932937041,2.59804636,1637.4,1637.3,29.61646415]
[1693932937404,2.13714355,1637.4,1637.3,29.61646415]
[1693932938441,2.13714355,1637.4,1637.3,35.09646415]
[1693932938606,2.13714355,1637.4,1637.3,37.5376183]
[1693932938807,8.549127,1637.9,1637.3,38.81692555]
[1693932938808,1.9557,1637.9,1637.3,38.81692555]
[1693932939035,2.13675326,1637.7,1637.4,6.9722833]
[1693932939341,2.13675326,1637.7,1637.5,19.38156861]
[1693932939507,2.13675326,1637.7,1637.5,20.52322754]
[1693932941134,2.13675326,1637.7,1637.5,25.52322754]
[1693932941327,0.00296793,1637.6,1637.5,23.93086592]
[1693932941531,0.00296793,1637.6,1637.5,29.65131809]
[1693932942336,0.4312307,1637.6,1637.5,29.65131809]
[1693932942744,2.13675326,1637.7,1637.5,29.65131809]
[1693932943036,2.13675326,1637.7,1637.6,1.321]
[1693932943238,2.13675326,1637.7,1637.6,13.53398]
[1693932943428,2.13972251,1637.7,1637.6,13.53398]
[1693932944314,2.13675326,1637.7,1637.6,13.53398]
[1693932947736,2.13675326,1637.7,1637.6,12.21298]
[1693932949119,2.53844859,1637.7,1637.5,11.10668]
[1693932949458,8.64456859,1637.7,1637.5,11.10686]
[1693932949657,6.50781533,1637.7,1637.5,11.10686]
[1693932949840,0.65078153,1637.6,1637.5,8.96971645]
[1693932950158,0.65078153,1637.6,1637.5,6.8325729]
[1693932950529,0.65078153,1637.6,1637.5,4.69542935]
[1693932950730,1.08205483,1637.6,1637.4,6.10704]
[1693932950939,1.08205483,1637.6,1637.4,12.2141]
[1693932951142,1.08205483,1637.6,1637.4,12.21412]
[1693932951343,7.18883483,1637.6,1637.3,9.10752]
[1693932951548,2.13714355,1637.4,1637.3,6.10752]
[1693932951745,2.13714355,1637.4,1637.3,13.27665624]
[1693932954631,2.56788943,1637.4,1637.3,13.27665624]
[1693932954831,2.56788943,1637.4,1637.3,1.06152624]
[1693932955656,2.56788943,1637.4,1637.2,6.60322449]
[1693932955862,2.56788943,1637.4,1637.2,12.71120449]
[1693932956064,2.56788943,1637.4,1637.2,14.30349182]
[1693932957378,2.56788943,1637.4,1637.3,1.06152971]
[1693932957530,2.56788943,1637.4,1637.3,7.16913971]
[1693932957531,3.70016672,1637.4,1637.3,7.16913971]
[1693932957727,3.70016672,1637.4,1637.3,6.10761]
[1693932958465,3.70016672,1637.4,1637.3,7.16913921]
[1693932959695,3.70016672,1637.4,1637.3,1.06152921]
[1693932960014,3.70016672,1637.4,1637.3,7.16913921]
[1693932960467,3.70016672,1637.4,1637.3,6.10761]
[1693932960864,2.56788943,1637.4,1637.3,6.10761]
[1693932961033,2.56788943,1637.4,1637.3,18.32283]
[1693932961231,2.13714355,1637.4,1637.3,21.31614787]
[1693932961534,2.13714355,1637.4,1637.3,26.61601275]
[1693932961931,2.13714355,1637.4,1637.3,29.61601275]
[1693932962244,1.50030139,1637.4,1637.3,29.61601275]
[1693932962934,1.50030139,1637.4,1637.3,30.57533844]
[1693932963135,1.50030139,1637.4,1637.3,32.69814341]
[1693932963336,1.50030139,1637.4,1637.3,37.69814341]
[1693932963780,1.50030139,1637.4,1637.3,34.61601275]
[1693932965234,1.50030139,1637.4,1637.3,43.64523821]
[1693932965432,12.2096,1638.1,1637.5,1.321]
[1693932965433,6.10475,1638.1,1637.5,1.321]
[1693932965631,12.20963,1638.1,1637.7,12.21186]
[1693932966075,14.21103,1638.1,1637.7,12.21186]
[1693932966437,16.4869047,1638.1,1637.7,12.21186]
[1693932966637,16.4869047,1638.1,1637.7,6.10593]
[1693932966837,16.4869047,1638.1,1637.7,12.21186]
[1693932967645,16.4869047,1638.1,1637.7,6.10593]
[1693932967849,25.65879896,1638.1,1637.6,12.21252]
[1693932968173,2.13675214,1637.7,1637.6,12.21252]
[1693932972375,2.13675214,1637.7,1637.6,18.31901]
[1693932972776,2.13675214,1637.7,1637.6,19.38040008]
[1693932974880,2.5542908,1637.7,1637.6,19.38040008]
[1693932975285,2.5542908,1637.7,1637.6,20.70140008]
[1693932975487,2.13675214,1637.7,1637.6,20.70140008]
[1693932975688,2.13675214,1637.7,1637.6,21.3410044]
[1693932976287,2.13675214,1637.7,1637.6,24.40801866]
[1693932976491,2.13675214,1637.7,1637.6,30.09084284]
[1693932976695,2.13675214,1637.7,1637.6,38.17282248]
[1693932976995,2.13675214,1637.7,1637.6,37.53321816]
[1693932984823,2.13675214,1637.7,1637.6,38.17348113]
[1693932986791,2.13675214,1637.7,1637.6,35.09150149]
[1693932988307,2.13675214,1637.7,1637.6,38.17342086]
[1693932988843,2.13675214,1637.7,1637.6,35.09150149]
[1693932990238,2.13675214,1637.7,1637.6,35.57383149]
[1693932991639,2.13675214,1637.7,1637.6,33.8427426]
[1693932991843,2.13675214,1637.7,1637.6,32.25074434]
[1693932992839,2.13675214,1637.7,1637.6,14.58852]
[1693932993041,2.13675214,1637.7,1637.6,20.69501]
[1693932993246,2.13675214,1637.7,1637.6,14.58852]
[1693932993546,2.5542702,1637.7,1637.6,14.58852]
[1693932993936,2.5542702,1637.7,1637.6,20.69501]
[1693932995619,2.5542702,1637.7,1637.6,8.48233]
[1693932995850,2.5542702,1637.7,1637.6,8.0]
[1693932996647,2.13675214,1637.7,1637.6,14.10649]
[1693932997632,2.13675214,1637.7,1637.6,20.21298]
[1693932998458,2.5542908,1637.7,1637.6,20.21298]
[1693933001752,2.5542908,1637.7,1637.6,21.27435276]
[1693933003429,3.01170988,1637.7,1637.6,7.16786276]
[1693933003660,3.01170988,1637.7,1637.6,6.10649]
[1693933005773,3.01170988,1637.7,1637.6,7.16788124]
[1693933007278,3.01170988,1637.7,1637.6,6.10649]
[1693933007574,3.01170988,1637.7,1637.6,7.16788264]
[1693933007775,3.01170988,1637.7,1637.6,6.10649]
[1693933012342,3.01170988,1637.7,1637.5,12.21326]
[1693933014198,3.01170988,1637.7,1637.5,13.80534039]
[1693933014499,3.01170988,1637.7,1637.5,12.21326]
[1693933016097,2.5542908,1637.7,1637.6,24.40909257]
[1693933016310,2.5542908,1637.7,1637.6,29.61199888]
[1693933016473,2.5542908,1637.7,1637.6,36.51763239]
[1693933016674,2.13675214,1637.7,1637.6,38.64040923]
[1693933017505,2.13675214,1637.7,1637.6,39.91971648]
[1693933017864,2.13675214,1637.7,1637.6,44.91971648]
[1693933020067,19.37549704,1638.4,1637.6,44.91971648]
[1693933020302,0.81536086,1638.0,1637.7,9.8557936]
[1693933020535,0.81536086,1638.0,1637.9,1.321]
[1693933020723,0.81536086,1638.0,1637.9,19.63711]
[1693933021239,1.19990267,1638.0,1637.9,20.69828939]
[1693933021426,1.19990267,1638.0,1637.9,22.2899984]
[1693933021807,1.19990267,1638.0,1637.9,27.2899984]
[1693933023438,1.19990267,1638.0,1637.9,25.69828939]
[1693933024640,1.19990267,1638.0,1637.9,28.76530365]
[1693933025702,1.19990267,1638.0,1637.9,10.44919365]
[1693933025925,1.19990267,1638.0,1637.9,22.65993365]
[1693933026408,1.19990267,1638.0,1637.9,27.70412426]
[1693933026736,1.19990267,1638.0,1637.9,29.24525815]
[1693933028335,1.19990267,1638.0,1637.9,28.18412426]
[1693933029350,1.19990267,1638.0,1637.9,9.86801426]
[1693933029647,1.19990267,1638.0,1637.9,22.07875426]
[1693933029853,1.19990267,1638.0,1637.9,28.18412426]
[1693933030036,1.19990267,1638.0,1637.9,34.44777034]
[1693933030346,2.442846,1638.5,1638.0,1.321]
[1693933030548,2.442846,1638.5,1638.4,1.321]
[1693933030747,0.81491083,1638.4,1638.3,6.10367]
[1693933030952,0.81491083,1638.4,1638.3,7.42467]
[1693933036427,0.81491083,1638.4,1638.3,13.52855]
[1693933038219,1.18838705,1638.4,1638.3,14.00855]
[1693933040923,1.18838705,1638.4,1638.3,28.17944426]
[1693933041438,0.81491083,1638.4,1638.3,28.17944426]
[1693933041839,0.81491083,1638.4,1638.3,32.24031919]
[1693933042046,0.81491083,1638.4,1638.3,33.83160126]
[1693933042423,0.17840175,1638.4,1638.3,34.47218424]
[1693933042829,0.101,1638.8,1638.3,34.47218424]
[1693933043025,2.13557874,1638.6,1638.5,12.20628]
[1693933043222,2.13557874,1638.6,1638.5,17.07429426]
[1693933043968,2.13557874,1638.6,1638.5,9.86801426]
[1693933044164,2.51076839,1638.6,1638.5,12.90414]
[1693933045430,2.51076839,1638.6,1638.5,12.42414]
[1693933045631,2.51076839,1638.6,1638.5,12.90414]
[1693933047530,2.51076839,1638.6,1638.5,6.321]
[1693933048572,2.51076839,1638.6,1638.5,1.321]
[1693933049069,2.51076839,1638.6,1638.4,7.42426]
[1693933049369,2.51076839,1638.6,1638.4,10.49127426]
[1693933049568,2.51076839,1638.6,1638.4,7.42426]
[1693933053087,2.51076839,1638.6,1638.4,9.01553413]
[1693933053890,2.51076839,1638.6,1638.4,7.42426]
[1693933054059,2.51076839,1638.6,1638.4,9.01554104]
[1693933056058,2.51076839,1638.6,1638.4,15.11905104]
[1693933056764,2.95417523,1638.6,1638.4,13.79805104]
[1693933057298,2.95417523,1638.6,1638.4,7.69454104]
[1693933057485,2.95417523,1638.6,1638.4,6.10326]
[1693933057686,2.95417523,1638.6,1638.5,1.06086553]
[1693933062305,2.95417523,1638.6,1638.4,7.80494851]
[1693933062508,2.95417523,1638.6,1638.5,1.06086553]
[1693933065072,2.95417523,1638.6,1638.5,1.06092081]
[1693933067708,2.51076839,1638.6,1638.5,7.16406081]
[1693933072407,2.51076839,1638.6,1638.5,1.06092081]
[1693933072814,2.51076839,1638.6,1638.4,7.69465122]
[1693933073418,2.51076839,1638.6,1638.5,1.06090341]
[1693933073751,2.51076839,1638.6,1638.4,7.69465122]
[1693933073956,2.51076839,1638.6,1638.4,6.10327]
[1693933074125,3.56442123,1638.6,1638.4,6.10327]
[1693933079760,3.56442123,1638.6,1638.3,6.60202785]
[1693933080059,3.56442123,1638.6,1638.3,12.70573785]
[1693933081426,9.66724123,1638.6,1638.3,6.60190785]
[1693933082260,9.66724123,1638.6,1638.3,0.49819785]
[1693933082564,7.07015412,1638.5,1638.1,14.41733956]
[1693933082724,7.07015412,1638.5,1638.2,6.06102831]
[1693933082725,13.17358412,1638.5,1638.2,6.06102831]
[1693933082923,13.17358412,1638.5,1638.2,5.0]
[1693933083125,7.79424384,1638.4,1638.2,5.0]
[1693933083549,7.79424384,1638.4,1638.1,11.1952097]
[1693933085962,7.79424384,1638.4,1638.1,0.49924848]
[1693933085963,13.89776384,1638.4,1638.1,0.49924848]
[1693933086160,13.89776384,1638.4,1638.1,1.06106111]
[1693933086369,7.79424384,1638.4,1638.1,7.16567111]
[1693933086660,0.77942438,1638.3,1638.1,6.10461]
[1693933087062,1.15321338,1638.3,1638.1,6.10461]
[1693933088265,1.15321338,1638.3,1638.0,8.33692576]
[1693933088473,7.25713338,1638.3,1638.1,1.06106591]
[1693933088671,7.25713338,1638.3,1638.0,6.10475]
[1693933088876,9.28173338,1638.3,1638.0,6.10475]
[1693933089045,0.92817334,1638.2,1638.0,6.10475]
[1693933089778,13.13685334,1638.2,1637.8,43.28166298]
[1693933089943,13.13685334,1638.2,1637.9,6.06118373]
[1693933090143,13.13685334,1638.2,1637.9,5.0]
[1693933090344,7.41860533,1638.1,1637.9,5.0]
[1693933090573,2.13636086,1638.0,1637.9,5.0]
[1693933091745,2.13636086,1638.0,1637.8,30.43]
[1693933091945,2.13636086,1638.0,1637.8,36.53574]
[1693933092375,2.13636086,1638.0,1637.8,6.10574]
[1693933096589,2.13636086,1638.0,1637.8,7.69755753]
[1693933096891,2.13636086,1638.0,1637.8,7.69754959]
[1693933097293,2.13636086,1638.0,1637.8,6.10574]
[1693933098090,2.13636086,1638.0,1637.8,7.69756033]
[1693933100698,0.3724655,1637.9,1637.8,7.69756033]
[1693933100899,0.3724655,1637.9,1637.8,11.75875954]
[1693933106118,0.3724655,1637.9,1637.8,16.75875954]
[1693933107377,0.3724655,1637.9,1637.8,11.75875954]
[1693933109518,0.3724655,1637.9,1637.8,23.50509252]
[1693933112427,0.3724655,1637.9,1637.8,23.50933429]
[1693933113188,0.37241188,1637.9,1637.8,37.69560269]
[1693933113416,0.37241188,1637.9,1637.8,37.53501971]
[1693933113617,2.13636086,1638.0,1637.8,38.81432696]
[1693933113821,2.13636086,1638.0,1637.9,25.76629334]
[1693933114177,2.13636086,1638.0,1637.9,30.76629334]
[1693933114813,2.13636086,1638.0,1637.9,32.08729334]
[1693933115203,2.13636086,1638.0,1637.9,25.50192334]
[1693933115403,2.13636086,1638.0,1637.9,20.50308316]
[1693933116193,2.13636086,1638.0,1637.9,18.91126283]
[1693933116394,2.13636086,1638.0,1637.9,12.81012619]
[1693933116606,2.13636086,1638.0,1637.9,14.40194652]
[1693933116807,2.48517278,1638.0,1637.9,12.81012619]
[1693933117011,2.48517278,1638.0,1637.9,11.74892698]
[1693933117218,2.48517278,1638.0,1637.9,6.06537352]
[1693933118830,2.48517278,1638.0,1637.9,1.06537352]
[1693933119331,3.95465306,1638.0,1637.9,1.06537352]
[1693933121419,10.05965306,1638.0,1637.9,1.06537352]
[1693933121809,10.05965306,1638.0,1637.9,0.00423336]
[1693933122001,3.95465306,1638.0,1637.9,0.00423336]
[1693933122430,10.05965306,1638.0,1637.9,0.00423336]
[1693933130640,12.03595306,1638.0,1637.9,0.00423336]
[1693933131621,18.14095306,1638.0,1637.9,0.00423336]
[1693933132220,16.0045922,1638.0,1637.9,0.00423336]
[1693933132432,2.12814657,1637.8,1637.7,0.63932362]
[1693933132627,2.12814657,1637.8,1637.7,1.70060281]
[1693933132832,2.47629971,1637.8,1637.7,1.70060281]
[1693933133264,2.47629971,1637.8,1637.7,1.06127919]
[1693933133553,2.47629971,1637.8,1637.7,1.06488623]
[1693933133753,2.47629971,1637.8,1637.7,1.70420985]
[1693933134359,2.47629971,1637.8,1637.7,1.06488623]
[1693933134733,2.47629971,1637.8,1637.7,1.70420985]
[1693933135451,2.47629971,1637.8,1637.7,1.06488623]
[1693933143673,2.47629971,1637.8,1637.7,0.00360704]
[1693933144674,2.47629971,1637.8,1637.6,12.6948098]
[1693933145373,2.47629971,1637.8,1637.7,0.00360704]
[1693933146383,2.47629971,1637.8,1637.6,12.6948098]
[1693933147579,2.47629971,1637.8,1637.7,0.00360704]
[1693933148392,2.47629971,1637.8,1637.7,13.27714201]
[1693933148551,2.47629971,1637.8,1637.7,22.14051851]
[1693933148948,2.12814657,1637.8,1637.7,23.73243012]
[1693933149450,2.12814657,1637.8,1637.7,23.73603716]
[1693933150063,2.47613018,1637.8,1637.7,23.73603716]
[1693933151867,2.47613018,1637.8,1637.7,17.62991716]
[1693933154901,2.12814657,1637.8,1637.7,17.62991716]
[1693933156379,2.12814657,1637.8,1637.7,16.03800555]
[1693933156579,2.12814657,1637.8,1637.7,17.62991716]
[1693933159919,2.12814657,1637.8,1637.7,18.26924078]
[1693933161513,2.12814657,1637.8,1637.7,23.26924078]
[1693933165314,2.12814657,1637.8,1637.7,7.65681362]
[1693933165522,2.12814657,1637.8,1637.7,6.06490201]
[1693933165523,8.23389657,1637.8,1637.7,6.06490201]
[1693933165718,8.23389657,1637.8,1637.7,1.06490201]
[1693933166344,8.60430772,1637.8,1637.7,1.06490201]
[1693933171441,8.60430772,1637.8,1637.7,1.06831787]
[1693933171649,3.96955049,1637.8,1637.7,1.06831787]
[1693933174416,16.18105049,1637.8,1637.7,1.06831787]
[1693933174597,16.18105049,1637.8,1637.7,0.0070229]
[1693933175560,18.18025049,1637.8,1637.5,0.63932362]
[1693933176327,17.80983934,1637.8,1637.5,0.63932362]
[1693933176528,1.78098393,1637.7,1637.6,0.00676746]
[1693933176841,7.88710393,1637.7,1637.6,1.06819226]
[1693933177047,7.88710393,1637.7,1637.6,0.00676746]
[1693933177485,8.23351185,1637.7,1637.4,1.5987301]
[1693933177693,8.23351185,1637.7,1637.4,2.660159]
[1693933177979,0.82335118,1637.6,1637.5,1.0614289]
[1693933178251,6.92984118,1637.6,1637.4,1.70075252]
[1693933178421,6.92984118,1637.6,1637.5,0.00677586]
[1693933178561,6.92984118,1637.6,1637.5,1.06820476]
[1693933183485,6.92984118,1637.6,1637.5,0.00677586]
[1693933184553,6.92984118,1637.6,1637.3,18.01138584]
[1693933184761,8.95384118,1637.6,1637.4,1.06144651]
[1693933185459,8.95384118,1637.6,1637.5,0.00677586]
[1693933186516,8.95384118,1637.6,1637.3,11.90393584]
[1693933186695,8.95384118,1637.6,1637.4,1.06144482]
[1693933187473,8.95384118,1637.6,1637.5,0.00677586]
[1693933188478,8.95384118,1637.6,1637.3,11.90393584]
[1693933188678,8.95384118,1637.6,1637.4,1.06144373]
[1693933189408,8.95384118,1637.6,1637.5,0.00677586]
[1693933190436,8.95384118,1637.6,1637.3,7.23018453]
[1693933190633,8.95384118,1637.6,1637.4,1.06144881]